bitfinex/quotes_SOLUSD_20241005
["timestamp","ask_amount","ask_price","bid_price","bid_amount"]
[1728123741931,25.9204,144.5,144.49,80.0]
[1728123744926,25.9204,144.5,144.49,50.0]
[1728123756731,19.0,144.5,144.49,50.0]
[1728123756935,25.9204,144.5,144.49,50.0]
[1728123757845,26.9194,144.52,144.51,50.0]
[1728123758943,26.9199,144.51,144.5,50.0]
[1728123763438,26.9204,144.5,144.49,50.0]
[1728123765242,26.9204,144.5,144.47,7.18944539]
[1728123765458,26.9204,144.5,144.49,50.0]
[1728123765949,6.9213,144.48,144.47,57.18944539]
[1728123767842,6.9213,144.48,144.47,87.18944539]
[1728123768029,6.9213,144.48,144.47,57.18944539]
[1728123768444,6.9213,144.48,144.47,7.18944539]
[1728123768743,6.9213,144.48,144.47,57.18944539]
[1728123787573,26.9213,144.48,144.47,57.18944539]
[1728123790964,26.9213,144.48,144.47,7.18944539]
[1728123791351,20.0,144.48,144.46,51.20433889]
[1728123791565,28.09622069,144.47,144.46,50.0]
[1728123791788,28.09622069,144.47,144.39,93.3480973]
[1728123791789,26.9228,144.45,144.44,50.0]
[1728123792071,26.9228,144.45,144.44,30.0]
[1728123793171,13.2033,144.51,144.47,50.0]
[1728123793172,39.7552,144.51,144.47,50.0]
[1728123793379,5.43508766,144.5,144.47,50.0]
[1728123793970,39.7552,144.51,144.47,50.0]
[1728123794148,5.43516153,144.5,144.48,50.0]
[1728123794678,21.17442069,144.5,144.48,50.0]
[1728123795052,20.0,144.48,144.45,50.0]
[1728123795247,22.73833013,144.49,144.43,51.20461702]
[1728123795248,26.9232,144.44,144.43,51.20461702]
[1728123796573,26.9232,144.44,144.43,1.20461702]
[1728123796954,26.9232,144.44,144.42,7.18139791]
[1728123798503,26.9237,144.43,144.42,7.18139791]
[1728123800477,26.9237,144.43,144.42,57.18139791]
[1728123809864,26.9237,144.43,144.42,50.0]
[1728123811077,20.0,144.43,144.42,50.0]
[1728123811275,26.9237,144.43,144.42,50.0]
[1728123813061,26.9237,144.43,144.42,57.17200528]
[1728123816465,26.9237,144.43,144.42,7.17200528]
[1728123816666,26.9237,144.43,144.42,57.17200528]
[1728123819695,26.9237,144.43,144.42,7.17200528]
[1728123819994,26.9237,144.43,144.42,57.17200528]
[1728123822293,20.0,144.43,144.42,57.42298528]
[1728123823483,20.0,144.43,144.42,57.17200528]
[1728123823686,26.9237,144.43,144.42,57.17200528]
[1728123833010,26.9237,144.43,144.42,50.0]
[1728123834598,6.9247,144.41,144.4,50.0]
[1728123834992,6.9247,144.41,144.4,57.17311462]
[1728123837503,26.9247,144.41,144.4,57.17311462]
[1728123841740,26.9247,144.41,144.4,50.0]
[1728123841908,20.0,144.41,144.4,50.0]
[1728123842112,26.9247,144.41,144.4,50.0]
[1728123843406,33.2576342,144.41,144.4,50.0]
[1728123843621,26.9256,144.39,144.38,50.8576813]
[1728123843908,26.9256,144.39,144.38,80.8576813]
[1728123844211,26.9256,144.39,144.38,50.8576813]
[1728123846219,42.3635,144.39,144.38,0.8576813]
[1728123846527,48.69202933,144.39,144.38,0.8576813]
[1728123848228,6.9256,144.39,144.38,50.8576813]
[1728123849923,20.0,144.39,144.38,50.8576813]
[1728123850629,26.9248,144.41,144.4,50.0]
[1728123850816,20.0,144.41,144.4,50.0]
[1728123851439,6.93,144.46,144.43,50.0]
[1728123851614,6.9228,144.45,144.44,50.0]
[1728123851819,1.17442069,144.45,144.42,50.0]
[1728123852720,6.9237,144.43,144.42,50.0]
[1728123852924,28.09812069,144.43,144.42,50.0]
[1728123853543,26.9237,144.43,144.42,50.0]
[1728123853727,20.0,144.42,144.41,50.0]
[1728123854045,26.9242,144.42,144.41,50.0]
[1728123857928,20.0,144.42,144.41,50.0]
[1728123858233,26.9242,144.42,144.41,50.0]
[1728123859153,26.9247,144.41,144.4,50.0]
[1728123866840,20.0,144.41,144.4,50.0]
[1728123868447,26.9247,144.41,144.4,50.0]
[1728123883872,20.0,144.41,144.4,50.0]
[1728123885074,20.0,144.42,144.41,50.0]
[1728123886655,26.9242,144.42,144.41,50.0]
[1728123888358,20.0,144.42,144.41,50.0]
[1728123893886,20.0,144.42,144.41,80.0]
[1728123896095,20.0,144.42,144.41,50.0]
[1728123901202,26.9242,144.42,144.41,50.0]
[1728123908196,17.3066,144.46,144.44,50.0]
[1728123908398,26.9228,144.45,144.44,50.0]
[1728123911796,6.9223,144.46,144.44,50.0]
[1728123911981,6.9223,144.46,144.45,51.3844195]
[1728123912298,6.9223,144.46,144.45,50.0]
[1728123912899,17.3028,144.49,144.47,50.0]
[1728123913196,44.2236,144.49,144.48,50.0]
[1728123913371,24.2236,144.49,144.48,50.0]
[1728123913568,6.9208,144.49,144.48,50.0]
[1728123914289,6.9213,144.48,144.47,50.0]
[1728123914692,22.8132,144.51,144.5,50.0]
[1728123916304,42.8132,144.51,144.5,50.0]
[1728123917077,26.9199,144.51,144.5,50.0]
[1728123917395,6.9185,144.54,144.53,50.0]
[1728123917597,6.917,144.57,144.56,50.0]
[1728123918487,26.9165,144.58,144.57,50.0]
[1728123921497,20.0,144.58,144.51,0.12549]
[1728123921795,26.9165,144.58,144.57,50.0]
[1728123922580,20.0,144.58,144.57,50.0]
[1728123922779,26.9165,144.58,144.57,50.0]
[1728123923588,20.0,144.58,144.57,50.0]
[1728123923782,26.9165,144.58,144.57,50.0]
[1728123927897,20.0,144.58,144.57,50.0]
[1728123928099,26.9165,144.58,144.57,50.0]
[1728123929013,20.0,144.58,144.57,50.0]
[1728123929208,26.9165,144.58,144.57,50.0]
[1728123930008,20.0,144.58,144.57,50.0]
[1728123930206,26.9165,144.58,144.57,50.0]
[1728123931087,20.0,144.58,144.57,50.0]
[1728123931294,26.9165,144.58,144.57,50.0]
[1728123933215,20.0,144.58,144.53,0.12549]
[1728123933402,26.9165,144.58,144.57,50.0]
[1728123934302,20.0,144.58,144.57,50.0]
[1728123934511,26.9165,144.58,144.57,50.0]
[1728123935393,20.0,144.58,144.57,50.0]
[1728123936508,6.9171,144.57,144.56,50.0]
[1728123936914,26.9171,144.57,144.56,50.0]
[1728123940719,42.3831,144.61,144.6,50.0]
[1728123941027,6.9151,144.61,144.6,50.0]
[1728123942025,6.9141,144.63,144.62,50.0]
[1728123942402,26.9141,144.63,144.62,50.0]
[1728123942922,20.0,144.63,144.62,50.0]
[1728123943131,26.9141,144.63,144.62,50.0]
[1728123944015,20.0,144.63,144.62,50.0]
[1728123944203,26.9141,144.63,144.62,50.0]
[1728123945021,20.0,144.63,144.62,50.0]
[1728123945219,26.9141,144.63,144.62,50.0]
[1728123951438,20.0,144.63,144.62,50.0]
[1728123951615,28.08852069,144.63,144.62,50.0]
[1728123952531,21.17442069,144.63,144.62,50.0]
[1728123952739,28.08852069,144.63,144.62,50.0]
[1728123953515,21.17442069,144.63,144.62,50.0]
[1728123953724,28.08852069,144.63,144.62,50.0]
[1728123954336,26.9141,144.63,144.62,50.0]
[1728123957832,20.0,144.63,144.62,50.0]
[1728123958043,26.9141,144.63,144.62,50.0]
[1728123963220,20.0,144.63,144.62,50.0]
[1728123963521,26.9141,144.63,144.62,50.0]
[1728123965348,20.0,144.63,144.62,50.0]
[1728123965648,26.9141,144.63,144.62,50.0]
[1728123967535,20.0,144.63,144.62,50.0]
[1728123967721,26.9141,144.63,144.62,50.0]
[1728123968650,20.0,144.63,144.62,50.0]
[1728123968822,26.9141,144.63,144.62,50.0]
[1728123969753,20.0,144.63,144.62,50.0]
[1728123969933,26.9141,144.63,144.62,50.0]
[1728123972949,20.0,144.63,144.62,50.0]
[1728123973130,26.9141,144.63,144.62,50.0]
[1728123974030,20.0,144.63,144.62,50.0]
[1728123974231,26.9141,144.63,144.62,50.0]
[1728123977255,20.0,144.63,144.62,50.0]
[1728123977554,26.9141,144.63,144.62,50.0]
[1728123983638,20.0,144.63,144.62,50.0]
[1728123983857,26.9141,144.63,144.62,50.0]
[1728123985835,6.9122,144.67,144.66,50.0]
[1728123987359,26.9122,144.67,144.66,50.0]
[1728123987556,20.0,144.67,144.66,50.0]
[1728123987754,26.9113,144.69,144.68,50.0]
[1728123987947,26.9113,144.69,144.68,58.65103921]
[1728123989364,26.9113,144.69,144.68,58.65069633]
[1728123992157,26.9113,144.69,144.68,8.65069633]
[1728123992460,26.9113,144.69,144.68,58.65069633]
[1728123994154,26.9113,144.69,144.68,50.0]
[1728123994365,20.0,144.69,144.68,50.0]
[1728123994562,26.9113,144.69,144.68,50.0]
[1728123995568,20.0,144.67,144.66,50.0]
[1728123995867,20.0,144.67,144.66,58.65143368]
[1728123997045,26.9122,144.67,144.66,58.65143368]
[1728124002171,26.9122,144.67,144.66,58.65103921]
[1728124005271,26.9122,144.67,144.66,50.0]
[1728124005470,26.9122,144.67,144.66,58.65103856]
[1728124008161,20.0,144.67,144.66,58.65103856]
[1728124008851,20.0,144.67,144.66,88.65103856]
[1728124009380,20.0,144.67,144.66,58.65103856]
[1728124010056,6.9119,144.68,144.66,50.0]
[1728124010281,26.9119,144.68,144.67,10.03311287]
[1728124010776,26.9119,144.68,144.67,58.65092873]
[1728124018259,26.9119,144.68,144.67,50.0]
[1728124018463,26.9119,144.68,144.67,58.65024904]
[1728124023178,26.9119,144.68,144.67,8.65024904]
[1728124023386,26.9119,144.68,144.67,58.65024904]
[1728124027090,26.9119,144.68,144.67,50.0]
[1728124035093,26.9122,144.67,144.66,50.0]
[1728124035992,20.0,144.67,144.66,50.0]
[1728124036190,26.9122,144.67,144.66,50.0]
[1728124038107,20.0,144.67,144.63,1.20266025]
[1728124038412,26.9122,144.67,144.66,50.0]
[1728124040310,20.0,144.67,144.66,50.0]
[1728124040510,26.9122,144.67,144.66,50.0]
[1728124058420,26.9122,144.67,144.63,1.20281333]
[1728124058621,26.9122,144.67,144.66,50.0]
[1728124062631,20.0,144.67,144.66,50.0]
[1728124062807,26.9122,144.67,144.66,50.0]
[1728124063721,20.0,144.67,144.66,50.0]
[1728124064008,26.9122,144.67,144.66,50.0]
[1728124074224,20.0,144.67,144.66,50.0]
[1728124074440,26.9122,144.67,144.66,50.0]
[1728124075336,20.0,144.67,144.66,50.0]
[1728124075545,26.9122,144.67,144.66,50.0]
[1728124077539,20.0,144.67,144.66,50.0]
[1728124077727,26.9122,144.67,144.66,50.0]
[1728124078638,20.0,144.67,144.66,50.0]
[1728124078939,26.9122,144.67,144.66,50.0]
[1728124082812,20.0,144.67,144.66,50.0]
[1728124083017,26.9122,144.67,144.66,50.0]
[1728124090226,20.0,144.67,144.66,50.0]
[1728124090416,26.9122,144.67,144.66,50.0]
[1728124094745,26.9137,144.64,144.63,51.20281333]
[1728124094921,26.9137,144.64,144.63,50.0]
[1728124097937,20.0,144.64,144.63,50.0]
[1728124098133,26.9137,144.64,144.63,50.0]
[1728124102225,20.0,144.64,144.63,50.0]
[1728124102445,26.9137,144.64,144.63,50.0]
[1728124103331,20.0,144.64,144.63,50.0]
[1728124103639,26.9137,144.64,144.63,50.0]
[1728124124838,26.9137,144.64,144.61,1.20300762]
[1728124125048,26.9137,144.64,144.63,50.0]
[1728124135654,20.0,144.64,144.63,50.0]
[1728124135854,26.9137,144.64,144.63,50.0]
[1728124142093,26.9137,144.64,144.62,7.21035093]
[1728124142268,26.9137,144.64,144.63,50.0]
[1728124143179,20.0,144.64,144.63,50.0]
[1728124143373,26.9137,144.64,144.63,50.0]
[1728124145382,20.0,144.64,144.63,50.0]
[1728124145579,26.9137,144.64,144.63,50.0]
[1728124156301,20.0,144.64,144.63,50.0]
[1728124157172,26.9137,144.64,144.63,50.0]
[1728124182207,6.9118,144.68,144.67,50.0]
[1728124182709,17.2761,144.71,144.7,50.0]
[1728124182912,24.1864,144.71,144.7,50.0]
[1728124183093,6.9103,144.71,144.7,50.0]
[1728124183614,26.9103,144.71,144.7,50.0]
[1728124184617,20.0,144.71,144.7,50.0]
[1728124184916,26.9104,144.71,144.7,50.0]
[1728124189394,6.9104,144.71,144.7,50.0]
[1728124200033,20.0,144.74,144.73,50.0]
[1728124200245,26.9089,144.74,144.73,50.0]
[1728124202947,20.0,144.74,144.73,50.0]
[1728124203121,26.9089,144.74,144.73,50.0]
[1728124204520,20.0,144.74,144.73,50.0]
[1728124204739,6.9085,144.75,144.73,50.0]
[1728124205227,6.9085,144.75,144.74,50.0]
[1728124206120,26.9085,144.75,144.74,50.0]
[1728124208334,6.9065,144.79,144.78,50.0]
[1728124209644,26.9065,144.79,144.78,50.0]
[1728124209849,20.0,144.79,144.78,50.0]
[1728124211552,6.9072,144.78,144.77,50.0]
[1728124211946,8.08162069,144.78,144.77,50.0]
[1728124212261,20.0,144.73,144.71,50.0]
[1728124212424,6.9098,144.72,144.71,50.0]
[1728124212626,20.0,144.73,144.72,50.0]
[1728124212836,26.9094,144.73,144.72,50.0]
[1728124215150,6.9103,144.71,144.7,50.0]
[1728124216351,20.0,144.76,144.7,50.0]
[1728124216560,26.9089,144.74,144.73,50.0]
[1728124218058,20.0,144.74,144.73,50.0]
[1728124218355,26.9089,144.74,144.73,50.0]
[1728124220253,20.0,144.74,144.73,50.0]
[1728124220456,26.9089,144.74,144.73,50.0]
[1728124223440,20.0,144.74,144.73,50.0]
[1728124223639,26.9089,144.74,144.73,50.0]
[1728124224547,20.0,144.74,144.73,50.0]
[1728124224746,26.9089,144.74,144.73,50.0]
[1728124227762,20.0,144.74,144.73,50.0]
[1728124228063,26.9089,144.74,144.73,50.0]
[1728124228234,20.0,144.74,144.71,50.0]
[1728124228437,6.9098,144.72,144.71,50.0]
[1728124237661,20.0,144.74,144.69,7.19407852]
[1728124237662,20.0,144.71,144.69,7.19407852]
[1728124237869,28.08522069,144.7,144.69,7.19407852]
[1728124238044,6.9113,144.69,144.68,50.0]
[1728124238446,1.17442069,144.7,144.67,50.0]
[1728124238645,6.912,144.68,144.67,50.0]
[1728124238883,6.912,144.68,144.67,80.0]
[1728124239352,6.912,144.68,144.67,50.0]
[1728124243669,6.912,144.68,144.63,8.11345824]
[1728124243875,6.912,144.68,144.67,50.0]
[1728124247591,35.7148,144.68,144.65,50.0]
[1728124247890,6.9127,144.66,144.65,50.0]
[1728124254786,6.9127,144.66,144.63,1.19935824]
[1728124255073,20.0,144.67,144.65,50.0]
[1728124255295,15.7148,144.68,144.67,50.0]
[1728124255474,6.9107,144.71,144.69,50.0]
[1728124255871,6.9108,144.7,144.69,50.0]
[1728124256805,26.9108,144.7,144.69,50.0]
[1728124257592,26.9108,144.7,144.68,50.0]
[1728124258973,1.17442069,144.69,144.66,50.0]
[1728124259178,1.17442069,144.71,144.66,50.0]
[1728124259689,6.9118,144.68,144.66,50.0]
[1728124260483,28.08662069,144.67,144.66,50.0]
[1728124260882,26.913,144.66,144.65,50.0]
[1728124262795,20.0,144.66,144.63,50.0]
[1728124262999,8.08762069,144.65,144.63,50.0]
[1728124263890,6.9132,144.65,144.63,50.0]
[1728124266307,6.9132,144.65,144.64,50.0]
[1728124267405,6.9132,144.65,144.63,50.0]
[1728124267714,6.9137,144.64,144.63,50.0]
[1728124267886,26.9137,144.64,144.63,50.0]
[1728124270590,26.9137,144.64,144.62,50.0]
[1728124271504,26.9137,144.64,144.61,50.0]
[1728124271706,6.9146,144.62,144.61,50.0]
[1728124272786,6.9152,144.61,144.59,51.19931295]
[1728124273295,6.9152,144.61,144.59,50.0]
[1728124273800,6.9152,144.61,144.6,50.0]
[1728124274679,6.9152,144.61,144.56,6.9175]
[1728124274898,6.9152,144.61,144.59,50.0]
[1728124274899,1.17442069,144.6,144.59,50.0]
[1728124275097,1.17442069,144.6,144.57,50.0]
[1728124275308,6.9164,144.59,144.57,50.0]
[1728124276608,1.17442069,144.62,144.57,50.0]
[1728124276801,6.9165,144.58,144.57,50.0]
[1728124277002,6.9165,144.58,144.56,50.0]
[1728124278799,1.17442069,144.57,144.56,50.0]
[1728124279210,8.09142069,144.57,144.55,50.0]
[1728124279593,6.917,144.57,144.55,50.0]
[1728124280203,6.917,144.57,144.56,50.0]
[1728124283316,22.7994,144.57,144.54,50.0]
[1728124283501,6.918,144.55,144.54,50.0]
[1728124284416,6.918,144.55,144.53,50.0]
[1728124285590,6.918,144.55,144.54,50.0]
[1728124294140,20.0,144.56,144.55,50.0]
[1728124295024,28.09192069,144.56,144.55,50.0]
[1728124295224,28.09192069,144.56,144.54,50.0]
[1728124299320,28.09192069,144.56,144.51,24.2188]
[1728124299504,28.09192069,144.56,144.54,50.0]
[1728124306317,6.918,144.55,144.54,50.0]
[1728124306744,6.9188,144.54,144.52,50.0]
[1728124306909,1.17442069,144.53,144.52,50.0]
[1728124308635,28.09332069,144.53,144.52,50.0]
[1728124308858,6.9189,144.53,144.5,50.1361953]
[1728124309134,1.17442069,144.52,144.5,50.1361953]
[1728124310341,6.9199,144.51,144.5,50.1361953]
[1728124311115,26.9199,144.51,144.5,0.1361953]
[1728124312337,50.696784,144.51,144.5,0.1361953]
[1728124312735,51.87120469,144.51,144.5,0.1361953]
[1728124314918,51.99669469,144.51,144.5,0.1361953]
[1728124316742,52.12218469,144.51,144.5,0.1361953]
[1728124320357,6.9224,144.46,144.44,50.0]
[1728124320659,1.17442069,144.45,144.43,50.0]
[1728124321644,6.9228,144.45,144.43,50.0]
[1728124322854,6.9228,144.45,144.39,17.3136]
[1728124322855,1.17442069,144.44,144.42,50.0]
[1728124323353,22.0712,144.43,144.4,50.0]
[1728124323557,1.17442069,144.42,144.4,50.0]
[1728124323760,8.09862069,144.42,144.4,50.0]
[1728124323990,20.0,144.41,144.4,50.0]
[1728124324253,20.0,144.41,144.38,50.0]
[1728124324854,6.9252,144.4,144.38,50.0]
[1728124325242,6.9248,144.41,144.38,50.0]
[1728124325665,20.0,144.4,144.38,50.0]
[1728124325972,6.9256,144.39,144.38,50.0]
[1728124326148,6.9256,144.39,144.37,50.0]
[1728124326346,1.17442069,144.38,144.37,50.0]
[1728124327459,8.10052069,144.38,144.36,0.8602899]
[1728124327665,6.9261,144.38,144.36,0.8602899]
[1728124328172,20.0,144.38,144.37,50.0]
[1728124328873,20.0,144.38,144.37,56.9266]
[1728124329264,6.9247,144.41,144.37,50.0]
[1728124329457,20.0,144.4,144.37,50.0]
[1728124330365,20.0,144.4,144.38,50.0]
[1728124331375,28.09972069,144.4,144.38,50.0]
[1728124332369,26.9253,144.4,144.38,50.0]
[1728124332570,26.9253,144.4,144.36,0.8602899]
[1728124332571,50.954464,144.37,144.36,0.8602899]
[1728124332765,50.829874,144.36,144.33,50.0]
[1728124332957,43.776884,144.34,144.33,50.0]
[1728124333157,20.0,144.33,144.3,50.0]
[1728124333368,28.10312069,144.33,144.3,50.0]
[1728124333773,28.10312069,144.33,144.31,50.0]
[1728124334273,20.0,144.33,144.31,50.0]
[1728124334575,20.0,144.33,144.28,17.3273]
[1728124334576,20.0,144.34,144.33,50.0]
[1728124335775,20.0,144.34,144.3,6.9299]
[1728124335959,20.0,144.34,144.33,50.0]
[1728124336154,20.0,144.34,144.31,50.0]
[1728124336753,20.0,144.34,144.33,50.0]
[1728124337774,21.17442069,144.37,144.31,50.0]
[1728124337950,6.9281,144.34,144.33,50.0]
[1728124338146,26.9281,144.34,144.33,50.0]
[1728124339178,20.0,144.34,144.33,50.0]
[1728124340171,15.1471,144.39,144.36,50.0]
[1728124340578,6.9262,144.38,144.36,50.0]
[1728124341272,20.0,144.4,144.38,50.0]
[1728124341767,6.9251,144.41,144.38,50.0]
[1728124341981,6.9252,144.4,144.38,50.0]
[1728124342863,20.0,144.39,144.38,50.0]
[1728124344070,6.9252,144.4,144.38,50.0]
[1728124345368,20.0,144.39,144.38,50.0]
[1728124345567,20.0,144.39,144.37,50.0]
[1728124346583,1.17442069,144.38,144.36,50.0]
[1728124346882,26.9257,144.39,144.38,50.0]
[1728124347381,28.10012069,144.39,144.38,50.0]
[1728124347560,28.10012069,144.39,144.37,50.0]
[1728124348153,21.17442069,144.39,144.37,50.0]
[1728124348358,26.9261,144.38,144.37,50.0]
[1728124348575,26.9261,144.38,144.36,50.0]
[1728124348888,28.10102069,144.37,144.36,50.0]
[1728124349068,26.9266,144.37,144.36,50.0]
[1728124349274,26.9266,144.37,144.34,50.0]
[1728124349765,26.9266,144.37,144.35,50.0]
[1728124350680,26.9266,144.37,144.34,50.0]
[1728124351790,26.9266,144.37,144.35,50.0]
[1728124354994,26.9266,144.37,144.36,50.0]
[1728124358197,26.9266,144.37,144.35,50.0]
[1728124359293,26.9266,144.37,144.36,50.0]
[1728124360888,20.0,144.37,144.36,50.0]
[1728124361368,20.0,144.38,144.36,50.0]
[1728124362492,20.0,144.38,144.37,50.0]
[1728124363470,26.9261,144.38,144.37,50.0]
[1728124364272,50.702984,144.38,144.37,50.0]
[1728124364795,50.702984,144.38,144.36,50.0]
[1728124364991,1.17442069,144.37,144.36,50.0]
[1728124365377,28.10102069,144.37,144.36,50.0]
[1728124365799,26.9266,144.37,144.36,50.0]
[1728124373596,20.0,144.37,144.36,50.0]
[1728124381914,20.0,144.38,144.37,50.0]
[1728124388204,6.9247,144.41,144.39,50.0]
[1728124389216,6.9247,144.41,144.4,50.0]
[1728124389515,20.0,144.42,144.4,50.0]
[1728124389722,26.9243,144.42,144.4,50.0]
[1728124390314,26.9243,144.42,144.41,50.0]
[1728124390623,15.1268,144.43,144.41,50.0]
[1728124390806,6.9236,144.44,144.43,50.0]
[1728124391548,16.1014,144.46,144.43,50.0]
[1728124391739,16.1014,144.46,144.45,50.0]
[1728124391926,6.9219,144.47,144.45,50.0]
[1728124392303,6.9212,144.49,144.47,50.0]
[1728124392518,6.9212,144.49,144.48,50.0]
[1728124393505,16.1014,144.5,144.48,50.0]
[1728124394733,23.0218,144.5,144.49,50.0]
[1728124394929,43.0218,144.5,144.49,50.0]
[1728124397718,43.0218,144.5,144.44,24.2301]
[1728124397934,43.0218,144.5,144.49,50.0]
[1728124398831,43.0218,144.5,144.45,30.0]
[1728124399131,43.0218,144.5,144.49,50.0]
[1728124399514,6.9213,144.48,144.47,50.0]
[1728124399830,26.9213,144.48,144.47,50.0]
[1728124400038,26.922,144.47,144.46,50.0]
[1728124401004,20.0,144.47,144.45,50.0]
[1728124401203,26.9223,144.46,144.45,50.0]
[1728124401420,20.0,144.45,144.43,50.0]
[1728124401622,26.9232,144.45,144.43,50.0]
[1728124402029,6.9223,144.46,144.45,50.0]
[1728124402331,26.9223,144.46,144.45,50.0]
[1728124409740,20.0,144.45,144.44,50.0]
[1728124410517,26.9228,144.45,144.44,50.0]
[1728124411938,26.9228,144.45,144.43,50.0]
[1728124412912,26.9228,144.45,144.44,50.0]
[1728124413117,15.5297,144.44,144.41,50.0]
[1728124413320,15.5297,144.44,144.36,1.204477]
[1728124413321,26.9247,144.41,144.39,50.0]
[1728124414051,26.9247,144.41,144.4,50.0]
[1728124417332,26.9247,144.41,144.39,50.0]
[1728124418039,26.9252,144.4,144.39,50.0]
[1728124422244,20.0,144.4,144.39,50.0]
[1728124423642,20.0,144.4,144.37,6.9265]
[1728124423852,20.0,144.4,144.39,50.0]
[1728124425155,26.9252,144.4,144.39,50.0]
[1728124429856,20.0,144.4,144.39,50.0]
[1728124444658,23.776884,144.43,144.42,50.0]
[1728124444659,26.9237,144.43,144.42,50.0]
[1728124444962,6.9237,144.43,144.42,50.0]
[1728124445561,6.9247,144.41,144.4,50.0]
[1728124446154,1.17442069,144.43,144.41,50.0]
[1728124446357,6.9252,144.4,144.39,50.0]
[1728124446781,26.9252,144.4,144.39,50.0]
[1728124447666,6.9261,144.38,144.37,50.0]
[1728124449362,26.9252,144.4,144.39,50.0]
[1728124450051,6.9238,144.43,144.41,50.0]
[1728124450662,6.9238,144.43,144.42,50.0]
[1728124451979,26.9238,144.43,144.42,50.0]
[1728124453861,20.0,144.43,144.4,50.0]
[1728124454161,6.9247,144.41,144.4,50.0]
[1728124454490,26.9237,144.43,144.42,50.0]
[1728124456268,51.87500469,144.43,144.42,50.0]
[1728124456593,26.9237,144.43,144.42,50.0]
[1728124456959,6.9242,144.42,144.41,50.0]
[1728124458563,26.9242,144.42,144.41,50.0]
[1728124460266,20.0,144.42,144.41,50.0]
[1728124460684,6.9238,144.43,144.41,50.0]
[1728124461077,15.5297,144.44,144.43,50.0]
[1728124462699,22.1573,144.5,144.48,50.0]
[1728124463996,20.0,144.49,144.48,50.0]
[1728124465583,22.1573,144.5,144.48,50.0]
[1728124466696,26.9204,144.5,144.49,50.0]
[1728124472088,20.0,144.49,144.48,50.0]
[1728124478400,20.0,144.5,144.49,50.0]
[1728124484411,26.9213,144.48,144.45,50.0]
[1728124484616,26.9213,144.48,144.47,50.0]
[1728124484617,43.776884,144.48,144.47,50.0]
[1728124484807,50.698184,144.48,144.47,50.0]
[1728124488199,50.698184,144.48,144.45,50.0]
[1728124488400,50.698184,144.48,144.47,50.0]
[1728124493329,50.698184,144.48,144.46,50.0]
[1728124496427,6.9218,144.47,144.46,50.0]
[1728124496599,6.9218,144.47,144.42,6.9241]
[1728124496600,31.87310469,144.47,144.44,50.0]
[1728124497028,30.698684,144.47,144.44,50.0]